Workbook

Sheet Produktionsanlæg
A1: Produktionsanlæg | B1: Enhed | C1: Standard-levetid | D1: Samlet mængde per 31/12-2022 | E1: Samlet mængde per 31/12-2023 | F1: Samlet mængde per 31/12-2024 | G1: Afvigelse 2022-2023 | H1: Afvigelse 2023-2024 | I1: Bemærkninger
A3: Renseanlæg 1 | G3: =IF(D3="",IF(E3>0,"Ny data",IF(E3="","",0)),IF(D3=0,IF(E3=0,0,"Ny data"),(E3-D3)/D3)) ->  | H3: =IF(E3="",IF(F3>0,"Ny data",IF(F3="","",0)),IF(E3=0,IF(F3=0,0,"Ny data"),(F3-E3)/E3)) -> 
A4: Mindre renseanlæg
A5: Mindre renseanlæg < 5.000 PE | B5: PE | C5: 40 | D5: 0 | G5: 0
A6: Renseanlæg >= 5.000 PE, Vandbehandling
A7: Indløb med riste, Konstruktioner | B7: PE | C7: 60 | D7: 0 | E7: 30000 | F7: 30000 | G7: Ny data | H7: 0 | I7: Sorø
A8: Indløb med riste, Mek/EL | B8: PE | C8: 20 | D8: 0 | E8: 30000 | F8: 30000 | G8: Ny data | H8: 0 | I8: selskabet har ikke indrapporteret i 2022
A9: Indløb med riste, SRO | B9: PE | C9: 10 | D9: 0 | E9: 30000 | F9: 30000 | G9: Ny data | H9: 0 | I9: selskabet har ikke indrapporteret i 2023
A10: Sand- og fedtfang, Kontruktioner | B10: PE | C10: 60 | D10: 0 | E10: 30000 | F10: 30000 | G10: Ny data | H10: 0 | I10: selskabet har ikke indrapporteret i 2024
A11: Sand- og fedtfang, Mek/EL | B11: PE | C11: 20 | D11: 0 | E11: 30000 | F11: 30000 | G11: Ny data | H11: 0 | I11: selskabet har ikke indrapporteret i 2025
A12: Sand- og fedtfang, SRO | B12: PE | C12: 10 | D12: 0 | E12: 30000 | F12: 30000 | G12: Ny data | H12: 0 | I12: selskabet har ikke indrapporteret i 2026
A13: Forklaring, Konstruktioner | B13: PE | C13: 60 | D13: 0 | E13: 30000 | F13: 30000 | G13: Ny data | H13: 0 | I13: selskabet har ikke indrapporteret i 2027
A14: Forklaring, Mek/EL | B14: PE | C14: 20 | D14: 0 | E14: 30000 | F14: 30000 | G14: Ny data | H14: 0 | I14: selskabet har ikke indrapporteret i 2028
A15: Forklaring, SRO | B15: PE | C15: 10 | D15: 0 | E15: 30000 | F15: 30000 | G15: Ny data | H15: 0 | I15: selskabet har ikke indrapporteret i 2029
A16: Beluftningstanke, Konstruktioner | B16: PE | C16: 60 | D16: 0 | E16: 30000 | F16: 30000 | G16: Ny data | H16: 0 | I16: selskabet har ikke indrapporteret i 2030
A17: Beluftningstanke, Mek/EL | B17: PE | C17: 20 | D17: 0 | E17: 30000 | F17: 30000 | G17: Ny data | H17: 0 | I17: selskabet har ikke indrapporteret i 2031
A18: Beluftningstanke, SRO | B18: PE | C18: 10 | D18: 0 | E18: 30000 | F18: 30000 | G18: Ny data | H18: 0 | I18: selskabet har ikke indrapporteret i 2032
A19: Efterklaringstanke, Konstruktioner | B19: PE | C19: 60 | D19: 0 | E19: 30000 | F19: 30000 | G19: Ny data | H19: 0 | I19: selskabet har ikke indrapporteret i 2033
A20: Efterklaringstanke, Mek/El | B20: PE | C20: 20 | D20: 0 | E20: 30000 | F20: 30000 | G20: Ny data | H20: 0 | I20: selskabet har ikke indrapporteret i 2034
A21: Efterklaringstanke, SRO | B21: PE | C21: 10 | D21: 0 | E21: 30000 | F21: 30000 | G21: Ny data | H21: 0 | I21: selskabet har ikke indrapporteret i 2035
A22: Efterbehandlingsanlæg (sandfilter), Konstruktioner | B22: PE | C22: 60 | D22: 0 | E22: 30000 | F22: 30000 | G22: Ny data | H22: 0 | I22: selskabet har ikke indrapporteret i 2036
A23: Efterbehandlingsanlæg (sandfilter), Mek/EL | B23: PE | C23: 20 | D23: 0 | E23: 30000 | F23: 30000 | G23: Ny data | H23: 0 | I23: selskabet har ikke indrapporteret i 2037
A24: Efterbehandlingsanlæg (sandfilter), SRO | B24: PE | C24: 10 | D24: 0 | E24: 30000 | F24: 30000 | G24: Ny data | H24: 0 | I24: selskabet har ikke indrapporteret i 2038
A25: Renseanlæg >= 5.000 PE, Slambehandling
A26: Forafvanding, slam, Konstruktion | B26: PE | C26: 60 | D26: 0 | G26: 0
A27: Forafvanding, slam, Mek/EL | B27: PE | C27: 20 | D27: 0 | G27: 0
A28: Forafvanding, slam, SRO | B28: PE | C28: 10 | D28: 0 | G28: 0
A29: Rådnetanke, slam, Konstruktioner | B29: PE | C29: 60 | D29: 0 | G29: 0
A30: Rådnetanke, slam, Mek/EL | B30: PE | C30: 20 | D30: 0 | G30: 0
A31: Rådnetanke, slam, SRO | B31: PE | C31: 10 | D31: 0 | G31: 0
A32: Gasdisponering, Konstruktioner | B32: PE | C32: 60 | D32: 0 | G32: 0
A33: Gasdisponering, Mek/EL | B33: PE | C33: 20 | D33: 0 | G33: 0
A34: Gasdisponering, SRO | B34: PE | C34: 10 | D34: 0 | G34: 0
A35: Gasdisponering - elproduktionsanlæg, Konstruktioner | B35: PE | C35: 60 | D35: 0 | G35: 0
A36: Gasdisponering - elproduktionsanlæg, Mek/EL | B36: PE | C36: 20 | D36: 0 | G36: 0
A37: Gasdisponering - elproduktionsanlæg, SRO | B37: PE | C37: 10 | D37: 0 | G37: 0
A38: Gasrensning - Aktivt kulfilter | B38: m3/t | C38: 15 | D38: 0 | G38: 0
A39: Gasrensning - Biologisk skrubber | B39: m3/t | C39: 15 | D39: 0 | G39: 0
A40: Opgraderingsanlæg - Membran | B40: m3/t | C40: 15 | D40: 0 | G40: 0
A41: Varmeproduktionsanlæg | B41: m3/t | C41: 15 | D41: 0 | G41: 0
A42: Slutafvanding, slam - lavteknologisk (slambede), Konstruktioner | B42: PE | C42: 60 | D42: 0 | G42: 0
A43: Slutafvanding, slam - lavteknologisk (slambede), Mek/EL | B43: PE | C43: 20 | D43: 0 | G43: 0
A44: Slutafvanding, slam - lavteknologisk (slambede), SRO | B44: PE | C44: 10 | D44: 0 | G44: 0
A45: Slutafvanding, slam - højteknologisk (centrifuger), Konstruktioner | B45: PE | C45: 60 | D45: 0 | G45: 0
A46: Slutafvanding, slam - højteknologisk (centrifuger), Mek/El | B46: PE | C46: 20 | D46: 0 | G46: 0
A47: Slutafvanding, slam - højteknologisk (centrifuger), SRO | B47: PE | C47: 10 | D47: 0 | G47: 0
A48: Renseanlæg >= 5.000 PE, Slamdisponering
A49: Slutdisponering, slam - lavteknologisk (slammineralisering), Konstruktioner | B49: PE | C49: 60 | D49: 0 | E49: 30000 | F49: 30000 | G49: Ny data | H49: 0 | I49: selskabet har ikke indrapporteret i 2022
A50: Slutdisponering, slam - lavteknologisk (slammineralisering), Mek/EL | B50: PE | C50: 20 | D50: 0 | E50: 30000 | F50: 30000 | G50: Ny data | H50: 0 | I50: selskabet har ikke indrapporteret i 2023
A51: Slutdisponering, slam - lavteknologisk (slammineralisering), SRO | B51: PE | C51: 10 | D51: 0 | E51: 30000 | F51: 30000 | G51: Ny data | H51: 0 | I51: selskabet har ikke indrapporteret i 2024
A52: Slutdisponering, slam - højteknologisk (slamtørring), Konstruktioner | B52: PE | C52: 60 | D52: 0 | G52: 0
A53: Slutdisponering, slam - højteknologisk (slamtørring), Mek/EL | B53: PE | C53: 20 | D53: 0 | G53: 0
A54: Slutdisponering, slam - højteknologisk (slamtørring), SRO | B54: PE | C54: 10 | D54: 0 | G54: 0
A55: Slutdisponering, slam - højteknologisk (slamtørring og -forbrænding), Konstruktioner | B55: PE | C55: 60 | D55: 0 | G55: 0
A56: Slutdisponering, slam - højteknologisk (slamtørring og -forbrænding), Mek/EL | B56: PE | C56: 20 | D56: 0 | G56: 0
A57: Slutdisponering, slam - højteknologisk (slamtørring og -forbrænding), SRO | B57: PE | C57: 10 | D57: 0 | G57: 0
A58: Renseanlæg 2
A59: Mindre renseanlæg
A60: Mindre renseanlæg < 5.000 PE | B60: PE | C60: 40 | D60: 0 | G60: 0
A61: Renseanlæg >= 5.000 PE, Vandbehandling
A62: Indløb med riste, Konstruktioner | B62: PE | C62: 60 | D62: 0 | E62: 6800 | F62: 6800 | G62: Ny data | H62: 0 | I62: Stenlille
A63: Indløb med riste, Mek/EL | B63: PE | C63: 20 | D63: 0 | E63: 6800 | F63: 6800 | G63: Ny data | H63: 0 | I63: selskabet har ikke indrapporteret i 2022
A64: Indløb med riste, SRO | B64: PE | C64: 10 | D64: 0 | E64: 6800 | F64: 6800 | G64: Ny data | H64: 0 | I64: selskabet har ikke indrapporteret i 2023
A65: Sand- og fedtfang, Kontruktioner | B65: PE | C65: 60 | D65: 0 | E65: 6800 | F65: 6800 | G65: Ny data | H65: 0 | I65: selskabet har ikke indrapporteret i 2024
A66: Sand- og fedtfang, Mek/EL | B66: PE | C66: 20 | D66: 0 | E66: 6800 | F66: 6800 | G66: Ny data | H66: 0 | I66: selskabet har ikke indrapporteret i 2025
A67: Sand- og fedtfang, SRO | B67: PE | C67: 10 | D67: 0 | E67: 6800 | F67: 6800 | G67: =IF(D67="",IF(E67>0,"Ny data",IF(E67="","",0)),IF(D67=0,IF(E67=0,0,"Ny data"),(E67-D67)/D67)) -> Ny data | H67: =IF(E67="",IF(F67>0,"Ny data",IF(F67="","",0)),IF(E67=0,IF(F67=0,0,"Ny data"),(F67-E67)/E67)) -> 0 | I67: selskabet har ikke indrapporteret i 2026
A68: Forklaring, Konstruktioner | B68: PE | C68: 60 | D68: 0 | E68: 6800 | F68: 6800 | G68: Ny data | H68: 0 | I68: selskabet har ikke indrapporteret i 2027
A69: Forklaring, Mek/EL | B69: PE | C69: 20 | D69: 0 | E69: 6800 | F69: 6800 | G69: Ny data | H69: 0 | I69: selskabet har ikke indrapporteret i 2028
A70: Forklaring, SRO | B70: PE | C70: 10 | D70: 0 | E70: 6800 | F70: 6800 | G70: Ny data | H70: 0 | I70: selskabet har ikke indrapporteret i 2029
A71: Beluftningstanke, Konstruktioner | B71: PE | C71: 60 | D71: 0 | E71: 6800 | F71: 6800 | G71: Ny data | H71: 0 | I71: selskabet har ikke indrapporteret i 2030
A72: Beluftningstanke, Mek/EL | B72: PE | C72: 20 | D72: 0 | E72: 6800 | F72: 6800 | G72: Ny data | H72: 0 | I72: selskabet har ikke indrapporteret i 2031
A73: Beluftningstanke, SRO | B73: PE | C73: 10 | D73: 0 | E73: 6800 | F73: 6800 | G73: Ny data | H73: 0 | I73: selskabet har ikke indrapporteret i 2032
A74: Efterklaringstanke, Konstruktioner | B74: PE | C74: 60 | D74: 0 | E74: 6800 | F74: 6800 | G74: Ny data | H74: 0 | I74: selskabet har ikke indrapporteret i 2033
A75: Efterklaringstanke, Mek/El | B75: PE | C75: 20 | D75: 0 | E75: 6800 | F75: 6800 | G75: Ny data | H75: 0 | I75: selskabet har ikke indrapporteret i 2034
A76: Efterklaringstanke, SRO | B76: PE | C76: 10 | D76: 0 | E76: 6800 | F76: 6800 | G76: Ny data | H76: 0 | I76: selskabet har ikke indrapporteret i 2035
A77: Efterbehandlingsanlæg (sandfilter), Konstruktioner | B77: PE | C77: 60 | D77: 0 | E77: 6800 | F77: 6800 | G77: Ny data | H77: 0 | I77: selskabet har ikke indrapporteret i 2036
A78: Efterbehandlingsanlæg (sandfilter), Mek/EL | B78: PE | C78: 20 | D78: 0 | E78: 6800 | F78: 6800 | G78: Ny data | H78: 0 | I78: selskabet har ikke indrapporteret i 2037
A79: Efterbehandlingsanlæg (sandfilter), SRO | B79: PE | C79: 10 | D79: 0 | E79: 6800 | F79: 6800 | G79: Ny data | H79: 0 | I79: selskabet har ikke indrapporteret i 2038
A80: Renseanlæg >= 5.000 PE, Slambehandling
A81: Forafvanding, slam, Konstruktion | B81: PE | C81: 60 | D81: 0 | G81: 0
A82: Forafvanding, slam, Mek/EL | B82: PE | C82: 20 | D82: 0 | G82: 0
A83: Forafvanding, slam, SRO | B83: PE | C83: 10 | D83: 0 | G83: 0
A84: Rådnetanke, slam, Konstruktioner | B84: PE | C84: 60 | D84: 0 | G84: 0
A85: Rådnetanke, slam, Mek/EL | B85: PE | C85: 20 | D85: 0 | G85: 0
A86: Rådnetanke, slam, SRO | B86: PE | C86: 10 | D86: 0 | G86: 0
A87: Gasdisponering, Konstruktioner | B87: PE | C87: 60 | D87: 0 | G87: 0
A88: Gasdisponering, Mek/EL | B88: PE | C88: 20 | D88: 0 | G88: 0
A89: Gasdisponering, SRO | B89: PE | C89: 10 | D89: 0 | G89: 0
A90: Gasdisponering - elproduktionsanlæg, Konstruktioner | B90: PE | C90: 60 | D90: 0 | G90: 0
A91: Gasdisponering - elproduktionsanlæg, Mek/EL | B91: PE | C91: 20 | D91: 0 | G91: 0
A92: Gasdisponering - elproduktionsanlæg, SRO | B92: PE | C92: 10 | D92: 0 | G92: 0
A93: Gasrensning - Aktivt kulfilter | B93: m3/t | C93: 15 | D93: 0 | G93: 0
A94: Gasrensning - Biologisk skrubber | B94: m3/t | C94: 15 | D94: 0 | G94: 0
A95: Opgraderingsanlæg - Membran | B95: m3/t | C95: 15 | D95: 0 | G95: 0
A96: Varmeproduktionsanlæg | B96: m3/t | C96: 15 | D96: 0 | G96: 0
A97: Slutafvanding, slam - lavteknologisk (slambede), Konstruktioner | B97: PE | C97: 60 | D97: 0 | G97: 0
A98: Slutafvanding, slam - lavteknologisk (slambede), Mek/EL | B98: PE | C98: 20 | D98: 0 | G98: 0
A99: Slutafvanding, slam - lavteknologisk (slambede), SRO | B99: PE | C99: 10 | D99: 0 | G99: 0
A100: Slutafvanding, slam - højteknologisk (centrifuger), Konstruktioner | B100: PE | C100: 60 | D100: 0 | G100: 0
A101: Slutafvanding, slam - højteknologisk (centrifuger), Mek/El | B101: PE | C101: 20 | D101: 0 | G101: 0
A102: Slutafvanding, slam - højteknologisk (centrifuger), SRO | B102: PE | C102: 10 | D102: 0 | G102: 0
A103: Renseanlæg >= 5.000 PE, Slamdisponering
A104: Slutdisponering, slam - lavteknologisk (slammineralisering), Konstruktioner | B104: PE | C104: 60 | D104: 0 | E104: 6800 | F104: 6800 | G104: Ny data | H104: 0 | I104: selskabet har ikke indrapporteret i 2022
A105: Slutdisponering, slam - lavteknologisk (slammineralisering), Mek/EL | B105: PE | C105: 20 | D105: 0 | E105: 6800 | F105: 6800 | G105: Ny data | H105: 0 | I105: selskabet har ikke indrapporteret i 2023
A106: Slutdisponering, slam - lavteknologisk (slammineralisering), SRO | B106: PE | C106: 10 | D106: 0 | E106: 6800 | F106: 6800 | G106: Ny data | H106: 0 | I106: selskabet har ikke indrapporteret i 2024
A107: Slutdisponering, slam - højteknologisk (slamtørring), Konstruktioner | B107: PE | C107: 60 | D107: 0 | G107: 0
A108: Slutdisponering, slam - højteknologisk (slamtørring), Mek/EL | B108: PE | C108: 20 | D108: 0 | G108: 0
A109: Slutdisponering, slam - højteknologisk (slamtørring), SRO | B109: PE | C109: 10 | D109: 0 | G109: 0
A110: Slutdisponering, slam - højteknologisk (slamtørring og -forbrænding), Konstruktioner | B110: PE | C110: 60 | D110: 0 | G110: 0
A111: Slutdisponering, slam - højteknologisk (slamtørring og -forbrænding), Mek/EL | B111: PE | C111: 20 | D111: 0 | G111: 0
A112: Slutdisponering, slam - højteknologisk (slamtørring og -forbrænding), SRO | B112: PE | C112: 10 | D112: 0 | G112: 0
A113: Renseanlæg 3
A114: Mindre renseanlæg
A115: Mindre renseanlæg < 5.000 PE | B115: PE | C115: 40 | D115: 0 | G115: 0
A116: Renseanlæg >= 5.000 PE, Vandbehandling
A117: Indløb med riste, Konstruktioner | B117: PE | C117: 60 | D117: 0 | E117: 6000 | F117: 6000 | G117: Ny data | H117: 0 | I117: Dianalund
A118: Indløb med riste, Mek/EL | B118: PE | C118: 20 | D118: 0 | E118: 6000 | F118: 6000 | G118: Ny data | H118: 0 | I118: selskabet har ikke indrapporteret i 2022
A119: Indløb med riste, SRO | B119: PE | C119: 10 | D119: 0 | E119: 6000 | F119: 6000 | G119: Ny data | H119: 0 | I119: selskabet har ikke indrapporteret i 2023
A120: Sand- og fedtfang, Kontruktioner | B120: PE | C120: 60 | D120: 0 | E120: 6000 | F120: 6000 | G120: Ny data | H120: 0 | I120: selskabet har ikke indrapporteret i 2024
A121: Sand- og fedtfang, Mek/EL | B121: PE | C121: 20 | D121: 0 | E121: 6000 | F121: 6000 | G121: Ny data | H121: 0 | I121: selskabet har ikke indrapporteret i 2025
A122: Sand- og fedtfang, SRO | B122: PE | C122: 10 | D122: 0 | E122: 6000 | F122: 6000 | G122: Ny data | H122: 0 | I122: selskabet har ikke indrapporteret i 2026
A123: Forklaring, Konstruktioner | B123: PE | C123: 60 | D123: 0 | E123: 6000 | F123: 6000 | G123: Ny data | H123: 0 | I123: selskabet har ikke indrapporteret i 2027
A124: Forklaring, Mek/EL | B124: PE | C124: 20 | D124: 0 | E124: 6000 | F124: 6000 | G124: Ny data | H124: 0 | I124: selskabet har ikke indrapporteret i 2028
A125: Forklaring, SRO | B125: PE | C125: 10 | D125: 0 | E125: 6000 | F125: 6000 | G125: Ny data | H125: 0 | I125: selskabet har ikke indrapporteret i 2029
A126: Beluftningstanke, Konstruktioner | B126: PE | C126: 60 | D126: 0 | E126: 6000 | F126: 6000 | G126: Ny data | H126: 0 | I126: selskabet har ikke indrapporteret i 2030
A127: Beluftningstanke, Mek/EL | B127: PE | C127: 20 | D127: 0 | E127: 6000 | F127: 6000 | G127: Ny data | H127: 0 | I127: selskabet har ikke indrapporteret i 2031
A128: Beluftningstanke, SRO | B128: PE | C128: 10 | D128: 0 | E128: 6000 | F128: 6000 | G128: Ny data | H128: 0 | I128: selskabet har ikke indrapporteret i 2032
A129: Efterklaringstanke, Konstruktioner | B129: PE | C129: 60 | D129: 0 | E129: 6000 | F129: 6000 | G129: Ny data | H129: 0 | I129: selskabet har ikke indrapporteret i 2033
A130: Efterklaringstanke, Mek/El | B130: PE | C130: 20 | D130: 0 | E130: 6000 | F130: 6000 | G130: Ny data | H130: 0 | I130: selskabet har ikke indrapporteret i 2034
A131: Efterklaringstanke, SRO | B131: PE | C131: 10 | D131: 0 | E131: 6000 | F131: 6000 | G131: =IF(D131="",IF(E131>0,"Ny data",IF(E131="","",0)),IF(D131=0,IF(E131=0,0,"Ny data"),(E131-D131)/D131)) -> Ny data | H131: =IF(E131="",IF(F131>0,"Ny data",IF(F131="","",0)),IF(E131=0,IF(F131=0,0,"Ny data"),(F131-E131)/E131)) -> 0 | I131: selskabet har ikke indrapporteret i 2035
A132: Efterbehandlingsanlæg (sandfilter), Konstruktioner | B132: PE | C132: 60 | D132: 0 | E132: 6000 | F132: 6000 | G132: Ny data | H132: 0 | I132: selskabet har ikke indrapporteret i 2036
A133: Efterbehandlingsanlæg (sandfilter), Mek/EL | B133: PE | C133: 20 | D133: 0 | E133: 6000 | F133: 6000 | G133: Ny data | H133: 0 | I133: selskabet har ikke indrapporteret i 2037
A134: Efterbehandlingsanlæg (sandfilter), SRO | B134: PE | C134: 10 | D134: 0 | E134: 6000 | F134: 6000 | G134: Ny data | H134: 0 | I134: selskabet har ikke indrapporteret i 2038
A135: Renseanlæg >= 5.000 PE, Slambehandling
A136: Forafvanding, slam, Konstruktion | B136: PE | C136: 60 | D136: 0 | G136: 0
A137: Forafvanding, slam, Mek/EL | B137: PE | C137: 20 | D137: 0 | G137: 0
A138: Forafvanding, slam, SRO | B138: PE | C138: 10 | D138: 0 | G138: 0
A139: Rådnetanke, slam, Konstruktioner | B139: PE | C139: 60 | D139: 0 | G139: 0
A140: Rådnetanke, slam, Mek/EL | B140: PE | C140: 20 | D140: 0 | G140: 0
A141: Rådnetanke, slam, SRO | B141: PE | C141: 10 | D141: 0 | G141: 0
A142: Gasdisponering, Konstruktioner | B142: PE | C142: 60 | D142: 0 | G142: 0
A143: Gasdisponering, Mek/EL | B143: PE | C143: 20 | D143: 0 | G143: 0
A144: Gasdisponering, SRO | B144: PE | C144: 10 | D144: 0 | G144: 0
A145: Gasdisponering - elproduktionsanlæg, Konstruktioner | B145: PE | C145: 60 | D145: 0 | G145: 0
A146: Gasdisponering - elproduktionsanlæg, Mek/EL | B146: PE | C146: 20 | D146: 0 | G146: 0
A147: Gasdisponering - elproduktionsanlæg, SRO | B147: PE | C147: 10 | D147: 0 | G147: 0
A148: Gasrensning - Aktivt kulfilter | B148: m3/t | C148: 15 | D148: 0 | G148: 0
A149: Gasrensning - Biologisk skrubber | B149: m3/t | C149: 15 | D149: 0 | G149: 0
A150: Opgraderingsanlæg - Membran | B150: m3/t | C150: 15 | D150: 0 | G150: 0
A151: Varmeproduktionsanlæg | B151: m3/t | C151: 15 | D151: 0 | G151: 0
A152: Slutafvanding, slam - lavteknologisk (slambede), Konstruktioner | B152: PE | C152: 60 | D152: 0 | G152: 0
A153: Slutafvanding, slam - lavteknologisk (slambede), Mek/EL | B153: PE | C153: 20 | D153: 0 | G153: 0
A154: Slutafvanding, slam - lavteknologisk (slambede), SRO | B154: PE | C154: 10 | D154: 0 | G154: 0
A155: Slutafvanding, slam - højteknologisk (centrifuger), Konstruktioner | B155: PE | C155: 60 | D155: 0 | G155: 0
A156: Slutafvanding, slam - højteknologisk (centrifuger), Mek/El | B156: PE | C156: 20 | D156: 0 | G156: 0
A157: Slutafvanding, slam - højteknologisk (centrifuger), SRO | B157: PE | C157: 10 | D157: 0 | G157: 0
A158: Renseanlæg >= 5.000 PE, Slamdisponering
A159: Slutdisponering, slam - lavteknologisk (slammineralisering), Konstruktioner | B159: PE | C159: 60 | D159: 0 | E159: 6000 | F159: 6000 | G159: Ny data | H159: 0 | I159: selskabet har ikke indrapporteret i 2022
A160: Slutdisponering, slam - lavteknologisk (slammineralisering), Mek/EL | B160: PE | C160: 20 | D160: 0 | E160: 6000 | F160: 6000 | G160: Ny data | H160: 0 | I160: selskabet har ikke indrapporteret i 2022
A161: Slutdisponering, slam - lavteknologisk (slammineralisering), SRO | B161: PE | C161: 10 | D161: 0 | E161: 6000 | F161: 6000 | G161: Ny data | H161: 0 | I161: selskabet har ikke indrapporteret i 2022
A162: Slutdisponering, slam - højteknologisk (slamtørring), Konstruktioner | B162: PE | C162: 60 | D162: 0 | G162: 0
A163: Slutdisponering, slam - højteknologisk (slamtørring), Mek/EL | B163: PE | C163: 20 | D163: 0 | G163: 0
A164: Slutdisponering, slam - højteknologisk (slamtørring), SRO | B164: PE | C164: 10 | D164: 0 | G164: 0
A165: Slutdisponering, slam - højteknologisk (slamtørring og -forbrænding), Konstruktioner | B165: PE | C165: 60 | D165: 0 | G165: 0
A166: Slutdisponering, slam - højteknologisk (slamtørring og -forbrænding), Mek/EL | B166: PE | C166: 20 | D166: 0 | G166: 0
A167: Slutdisponering, slam - højteknologisk (slamtørring og -forbrænding), SRO | B167: PE | C167: 10 | D167: 0 | G167: 0
A168: Renseanlæg 4
A169: Mindre renseanlæg
A170: Mindre renseanlæg < 5.000 PE | B170: PE | C170: 40 | D170: 0 | E170: 2500 | F170: 2500 | G170: Ny data | H170: 0 | I170: Rudsvedby
A171: Renseanlæg >= 5.000 PE, Vandbehandling
A172: Indløb med riste, Konstruktioner | B172: PE | C172: 60 | D172: 0 | G172: 0
A173: Indløb med riste, Mek/EL | B173: PE | C173: 20 | D173: 0 | G173: 0
A174: Indløb med riste, SRO | B174: PE | C174: 10 | D174: 0 | G174: 0
A175: Sand- og fedtfang, Kontruktioner | B175: PE | C175: 60 | D175: 0 | G175: 0
A176: Sand- og fedtfang, Mek/EL | B176: PE | C176: 20 | D176: 0 | G176: 0
A177: Sand- og fedtfang, SRO | B177: PE | C177: 10 | D177: 0 | G177: 0
A178: Forklaring, Konstruktioner | B178: PE | C178: 60 | D178: 0 | G178: 0
A179: Forklaring, Mek/EL | B179: PE | C179: 20 | D179: 0 | G179: 0
A180: Forklaring, SRO | B180: PE | C180: 10 | D180: 0 | G180: 0
A181: Beluftningstanke, Konstruktioner | B181: PE | C181: 60 | D181: 0 | G181: 0
A182: Beluftningstanke, Mek/EL | B182: PE | C182: 20 | D182: 0 | G182: 0
A183: Beluftningstanke, SRO | B183: PE | C183: 10 | D183: 0 | G183: 0
A184: Efterklaringstanke, Konstruktioner | B184: PE | C184: 60 | D184: 0 | G184: 0
A185: Efterklaringstanke, Mek/El | B185: PE | C185: 20 | D185: 0 | G185: 0
A186: Efterklaringstanke, SRO | B186: PE | C186: 10 | D186: 0 | G186: 0
A187: Efterbehandlingsanlæg (sandfilter), Konstruktioner | B187: PE | C187: 60 | D187: 0 | G187: 0
A188: Efterbehandlingsanlæg (sandfilter), Mek/EL | B188: PE | C188: 20 | D188: 0 | G188: 0
A189: Efterbehandlingsanlæg (sandfilter), SRO | B189: PE | C189: 10 | D189: 0 | G189: 0
A190: Renseanlæg >= 5.000 PE, Slambehandling
A191: Forafvanding, slam, Konstruktion | B191: PE | C191: 60 | D191: 0 | G191: 0
A192: Forafvanding, slam, Mek/EL | B192: PE | C192: 20 | D192: 0 | G192: 0
A193: Forafvanding, slam, SRO | B193: PE | C193: 10 | D193: 0 | G193: 0
A194: Rådnetanke, slam, Konstruktioner | B194: PE | C194: 60 | D194: 0 | G194: 0
A195: Rådnetanke, slam, Mek/EL | B195: PE | C195: 20 | D195: 0 | G195: =IF(D195="",IF(E195>0,"Ny data",IF(E195="","",0)),IF(D195=0,IF(E195=0,0,"Ny data"),(E195-D195)/D195)) -> 0 | H195: =IF(E195="",IF(F195>0,"Ny data",IF(F195="","",0)),IF(E195=0,IF(F195=0,0,"Ny data"),(F195-E195)/E195)) -> 
A196: Rådnetanke, slam, SRO | B196: PE | C196: 10 | D196: 0 | G196: 0
A197: Gasdisponering, Konstruktioner | B197: PE | C197: 60 | D197: 0 | G197: 0
A198: Gasdisponering, Mek/EL | B198: PE | C198: 20 | D198: 0 | G198: 0
A199: Gasdisponering, SRO | B199: PE | C199: 10 | D199: 0 | G199: 0
A200: Gasdisponering - elproduktionsanlæg, Konstruktioner | B200: PE | C200: 60 | D200: 0 | G200: 0
A201: Gasdisponering - elproduktionsanlæg, Mek/EL | B201: PE | C201: 20 | D201: 0 | G201: 0
... 351 more rows

Sheet Distributionsanlæg
A1: Distributionsanlæg | B1: Enhed | C1: Standard-levetid | D1: Samlet mængde per 31/12-2022 | E1: Samlet mængde per 31/12-2023 | F1: Samlet mængde per 31/12-2024 | G1: Afvigelse 2022-2023 | H1: Afvigelse 2023-2024 | I1: Bemærkninger
A3: Ledningsnet - Land | G3: =IF(D3="",IF(E3>0,"Ny data",IF(E3="","",0)),IF(D3=0,IF(E3=0,0,"Ny data"),(E3-D3)/D3)) ->  | H3: =IF(E3="",IF(F3>0,"Ny data",IF(F3="","",0)),IF(E3=0,IF(F3=0,0,"Ny data"),(F3-E3)/E3)) -> 
A4: Ledningsnet ≤ Ø 200 mm | B4: meter | C4: 75 | D4: 0 | E4: =147396-1704 -> 145692 | F4: 147396 | G4: Ny data | H4: 0.01169590643 | I4: selskabet har ikke indrapporteret i 2022
A5: Ø 200 mm < Ledningsnet ≤ Ø 500 mm | B5: meter | C5: 75 | D5: 0 | E5: =37843-2150 -> 35693 | F5: 37843 | G5: Ny data | H5: 0.0602359006 | I5: selskabet har ikke indrapporteret i flere omgange
A6: Ø 500 mm < Ledningsnet ≤ Ø 800 mm | B6: meter | C6: 75 | D6: 0 | E6: 4071 | F6: 4071 | G6: Ny data | H6: 0 | I6: selskabet har ikke indrapporteret i flere omgange
A7: Ø 800 mm < Ledningsnet ≤ Ø 1000 mm | B7: meter | C7: 75 | D7: 0 | E7: 611 | F7: 611 | G7: Ny data | H7: 0 | I7: selskabet har ikke indrapporteret i flere omgange
A8: Ø 1000 mm < Ledningsnet ≤ Ø 1200 mm | B8: meter | C8: 75 | D8: 0 | E8: 83 | F8: 83 | G8: Ny data | H8: 0 | I8: selskabet har ikke indrapporteret i flere omgange
A9: Ø 1200 mm < Ledningsnet ≤ Ø 1600 mm | B9: meter | C9: 75 | D9: 0 | E9: 0 | F9: 0 | G9: 0 | H9: 0 | I9: selskabet har ikke indrapporteret i flere omgange
A10: Ledningsnet > Ø 1600 mm (rørbassiner og transportledninger) | B10: meter | C10: 75 | D10: 0 | E10: 55 | F10: 55 | G10: Ny data | H10: 0 | I10: selskabet har ikke indrapporteret i flere omgange
A11: Strømpeforing ≤ Ø 200 mm | B11: meter | C11: 50 | D11: 0 | E11: 307 | F11: 307 | G11: Ny data | H11: 0 | I11: selskabet har ikke indrapporteret i flere omgange
A12: Strømpeforing Ø 200 mm < Ledningsnet ≤ Ø 500 mm | B12: meter | C12: 50 | D12: 0 | E12: 418 | F12: 418 | G12: Ny data | H12: 0 | I12: selskabet har ikke indrapporteret i flere omgange
A13: Strømpeforing Ø 500 mm < Ledningsnet ≤ Ø 800 mm | B13: meter | C13: 50 | D13: 0 | E13: 0 | F13: 0 | G13: 0 | H13: 0 | I13: selskabet har ikke indrapporteret i flere omgange
A14: Strømpeforing Ø 800 mm < Ledningsnet ≤ Ø 1000 mm | B14: meter | C14: 50 | D14: 0 | E14: 0 | F14: 0 | G14: 0 | H14: 0 | I14: selskabet har ikke indrapporteret i flere omgange
A15: Strømpeforing Ø 1000 mm < Ledningsnet ≤ Ø 1200 mm | B15: meter | C15: 50 | D15: 0 | E15: 0 | F15: 0 | G15: 0 | H15: 0 | I15: selskabet har ikke indrapporteret i flere omgange
A16: Strømpeforing Ø 1200 mm < Ledningsnet ≤ Ø 1600 mm | B16: meter | C16: 50 | D16: 0 | E16: 0 | F16: 0 | G16: 0 | H16: 0 | I16: selskabet har ikke indrapporteret i flere omgange
A17: Ledningsnet - By
A18: Ledningsnet ≤ Ø 200 mm | B18: meter | C18: 75 | D18: 0 | E18: =+F18-704 -> 202843 | F18: 203547 | G18: Ny data | H18: 0.003470664504 | I18: selskabet har ikke indrapporteret i flere omgange
A19: Ø 200 mm < Ledningsnet ≤ Ø 500 mm | B19: meter | C19: 75 | D19: 0 | E19: =79541-(2547.5) -> 76993.5 | F19: 79541 | G19: Ny data | H19: 0.03308720866 | I19: selskabet har ikke indrapporteret i flere omgange
A20: Ø 500 mm < Ledningsnet ≤ Ø 800 mm | B20: meter | C20: 75 | D20: 0 | E20: =+F20-604 -> 17594 | F20: 18198 | G20: Ny data | H20: 0.03432988519 | I20: selskabet har ikke indrapporteret i flere omgange
A21: Ø 800 mm < Ledningsnet ≤ Ø 1000 mm | B21: meter | C21: 75 | D21: 0 | E21: =+F21-150 -> 3514 | F21: 3664 | G21: Ny data | H21: 0.04268639727 | I21: selskabet har ikke indrapporteret i flere omgange
A22: Ø 1000 mm < Ledningsnet ≤ Ø 1200 mm | B22: meter | C22: 75 | D22: 0 | E22: 1354 | F22: 1354 | G22: Ny data | H22: 0 | I22: selskabet har ikke indrapporteret i flere omgange
A23: Ø 1200 mm < Ledningsnet ≤ Ø 1600 mm | B23: meter | C23: 75 | D23: 0 | E23: 0 | F23: 0 | G23: 0 | H23: 0 | I23: selskabet har ikke indrapporteret i flere omgange
A24: Ledningsnet > Ø 1600 mm (rørbassiner og transportledninger) | B24: meter | C24: 75 | D24: 0 | E24: 0 | F24: 0 | G24: 0 | H24: 0 | I24: selskabet har ikke indrapporteret i flere omgange
A25: Strømpeforing ≤ Ø 200 mm | B25: meter | C25: 50 | D25: 0 | E25: 678 | F25: 678 | G25: Ny data | H25: 0 | I25: selskabet har ikke indrapporteret i flere omgange
A26: Strømpeforing Ø 200 mm < Ledningsnet ≤ Ø 500 mm | B26: meter | C26: 50 | D26: 0 | E26: 335 | F26: 335 | G26: Ny data | H26: 0 | I26: selskabet har ikke indrapporteret i flere omgange
A27: Strømpeforing Ø 500 mm < Ledningsnet ≤ Ø 800 mm | B27: meter | C27: 50 | D27: 0 | E27: 0 | F27: 0 | G27: 0 | H27: 0 | I27: selskabet har ikke indrapporteret i flere omgange
A28: Strømpeforing Ø 800 mm < Ledningsnet ≤ Ø 1000 mm | B28: meter | C28: 50 | D28: 0 | E28: 0 | F28: 0 | G28: 0 | H28: 0 | I28: selskabet har ikke indrapporteret i flere omgange
A29: Strømpeforing Ø 1000 mm < Ledningsnet ≤ Ø 1200 mm | B29: meter | C29: 50 | D29: 0 | E29: 0 | F29: 0 | G29: 0 | H29: 0 | I29: selskabet har ikke indrapporteret i flere omgange
A30: Strømpeforing Ø 1200 mm < Ledningsnet ≤ Ø 1600 mm | B30: meter | C30: 50 | D30: 0 | E30: 0 | F30: 0 | G30: 0 | H30: 0 | I30: selskabet har ikke indrapporteret i flere omgange
A31: Ledningsnet - City
A32: Ledningsnet ≤ Ø 200 mm | B32: meter | C32: 75 | D32: 0 | G32: 0
A33: Ø 200 mm < Ledningsnet ≤ Ø 500 mm | B33: meter | C33: 75 | D33: 0 | G33: 0
A34: Ø 500 mm < Ledningsnet ≤ Ø 800 mm | B34: meter | C34: 75 | D34: 0 | G34: 0
A35: Ø 800 mm < Ledningsnet ≤ Ø 1000 mm | B35: meter | C35: 75 | D35: 0 | G35: 0
A36: Ø 1000 mm < Ledningsnet ≤ Ø 1200 mm | B36: meter | C36: 75 | D36: 0 | G36: 0
A37: Ø 1200 mm < Ledningsnet ≤ Ø 1600 mm | B37: meter | C37: 75 | D37: 0 | G37: 0
A38: Ledningsnet > Ø 1600 mm (rørbassiner og transportledninger) | B38: meter | C38: 75 | D38: 0 | G38: 0
A39: Strømpeforing ≤ Ø 200 mm | B39: meter | C39: 50 | D39: 0 | G39: 0
A40: Strømpeforing Ø 200 mm < Ledningsnet ≤ Ø 500 mm | B40: meter | C40: 50 | D40: 0 | G40: 0
A41: Strømpeforing Ø 500 mm < Ledningsnet ≤ Ø 800 mm | B41: meter | C41: 50 | D41: 0 | G41: 0
A42: Strømpeforing Ø 800 mm < Ledningsnet ≤ Ø 1000 mm | B42: meter | C42: 50 | D42: 0 | G42: 0
A43: Strømpeforing Ø 1000 mm < Ledningsnet ≤ Ø 1200 mm | B43: meter | C43: 50 | D43: 0 | G43: 0
A44: Strømpeforing Ø 1200 mm < Ledningsnet ≤ Ø 1600 mm | B44: meter | C44: 50 | D44: 0 | G44: 0
A45: Ledningsnet - Indre city
A46: Ledningsnet ≤ Ø 200 mm | B46: meter | C46: 75 | D46: 0 | G46: 0
A47: Ø 200 mm < Ledningsnet ≤ Ø 500 mm | B47: meter | C47: 75 | D47: 0 | G47: 0
A48: Ø 500 mm < Ledningsnet ≤ Ø 800 mm | B48: meter | C48: 75 | D48: 0 | G48: 0
A49: Ø 800 mm < Ledningsnet ≤ Ø 1000 mm | B49: meter | C49: 75 | D49: 0 | G49: 0
A50: Ø 1000 mm < Ledningsnet ≤ Ø 1200 mm | B50: meter | C50: 75 | D50: 0 | G50: 0
A51: Ø 1200 mm < Ledningsnet ≤ Ø 1600 mm | B51: meter | C51: 75 | D51: 0 | G51: 0
A52: Ledningsnet > Ø 1600 mm (rørbassiner og transportledninger) | B52: meter | C52: 75 | D52: 0 | G52: 0
A53: Strømpeforing ≤ Ø 200 mm | B53: meter | C53: 50 | D53: 0 | G53: 0
A54: Strømpeforing Ø 200 mm < Ledningsnet ≤ Ø 500 mm | B54: meter | C54: 50 | D54: 0 | G54: 0
A55: Strømpeforing Ø 500 mm < Ledningsnet ≤ Ø 800 mm | B55: meter | C55: 50 | D55: 0 | G55: 0
A56: Strømpeforing Ø 800 mm < Ledningsnet ≤ Ø 1000 mm | B56: meter | C56: 50 | D56: 0 | G56: 0
A57: Strømpeforing Ø 1000 mm < Ledningsnet ≤ Ø 1200 mm | B57: meter | C57: 50 | D57: 0 | G57: 0
A58: Strømpeforing Ø 1200 mm < Ledningsnet ≤ Ø 1600 mm | B58: meter | C58: 50 | D58: 0 | G58: 0
A59: Brønde og stik, ledningsnet - Land
A60: Brønde | B60: stk. | C60: 75 | D60: 0 | E60: =3823-200 -> 3623 | F60: 3823 | G60: Ny data | H60: 0.05520287055 | I60: selskabet har ikke indrapporteret i flere omgange
A61: Stik | B61: stk. | C61: 75 | D61: 0 | E61: =1750-100 -> 1650 | F61: 1750 | G61: Ny data | H61: 0.06060606061 | I61: selskabet har ikke indrapporteret i flere omgange
A62: Brønde og stik, ledningsnet - By
A63: Brønde | B63: stk. | C63: 75 | D63: 0 | E63: =9176-210 -> 8966 | F63: 9176 | G63: Ny data | H63: 0.02342181575 | I63: selskabet har ikke indrapporteret i flere omgange
A64: Stik | B64: stk. | C64: 75 | D64: 0 | E64: =6438-170-157 -> 6111 | F64: 6438 | G64: Ny data | H64: 0.05351006382 | I64: selskabet har ikke indrapporteret i flere omgange
A65: Brønde og stik, ledningsnet - City
A66: Brønde | B66: stk. | C66: 75 | D66: 0 | G66: 0
A67: Stik | B67: stk. | C67: 75 | D67: 0 | G67: =IF(D67="",IF(E67>0,"Ny data",IF(E67="","",0)),IF(D67=0,IF(E67=0,0,"Ny data"),(E67-D67)/D67)) -> 0 | H67: =IF(E67="",IF(F67>0,"Ny data",IF(F67="","",0)),IF(E67=0,IF(F67=0,0,"Ny data"),(F67-E67)/E67)) -> 
A68: Brønde og stik, ledningsnet - Indre city
A69: Brønde | B69: stk. | C69: 75 | D69: 0 | G69: 0
A70: Stik | B70: stk. | C70: 75 | D70: 0 | G70: 0
A71: Små pumpestationer (<100 l/s) inkl. SRO-anlæg - Land
A72: Tryksatte minipumpestationer (husstandssystemer) | B72: stk. | C72: 30 | D72: 0 | E72: 118 | F72: 118 | G72: Ny data | H72: 0 | I72: selskabet har ikke indrapporteret i flere omgange
A73: Pumpestationer i brønde (< 6,25 m2), Konstruktioner | B73: stk. | C73: 50 | D73: 0 | E73: 90 | F73: 98 | G73: Ny data | H73: 0.08888888889 | I73: selskabet har ikke indrapporteret i flere omgange
A74: Pumpestationer i brønde (< 6,25 m2), Mek/EL | B74: stk. | C74: 20 | D74: 0 | E74: 90 | F74: 98 | G74: Ny data | H74: 0.08888888889 | I74: selskabet har ikke indrapporteret i flere omgange
A75: Pumpestationer i brønde (< 6,25 m2), SRO | B75: stk. | C75: 10 | D75: 0 | E75: 90 | F75: 98 | G75: Ny data | H75: 0.08888888889 | I75: selskabet har ikke indrapporteret i flere omgange
A76: Pumpestationer m. overbygning (< 20 m2), Konstruktioner | B76: stk. | C76: 50 | D76: 0 | E76: 7 | F76: 7 | G76: Ny data | H76: 0 | I76: selskabet har ikke indrapporteret i flere omgange
A77: Pumpestationer m. overbygning (< 20 m2), Mek/EL | B77: stk. | C77: 20 | D77: 0 | E77: 7 | F77: 7 | G77: Ny data | H77: 0 | I77: selskabet har ikke indrapporteret i flere omgange
A78: Pumpestationer m. overbygning (< 20 m2), SRO | B78: stk. | C78: 10 | D78: 0 | E78: 7 | F78: 7 | G78: Ny data | H78: 0 | I78: selskabet har ikke indrapporteret i flere omgange
A79: Pumpestationer i underjordiske bygværker (<50 m2), Konstruktioner | B79: stk. | C79: 50 | D79: 0 | E79: 2 | F79: 2 | G79: Ny data | H79: 0 | I79: selskabet har ikke indrapporteret i flere omgange
A80: Pumpestationer i underjordiske bygværker (<50 m2), Mek/El | B80: stk. | C80: 20 | D80: 0 | E80: 2 | F80: 2 | G80: Ny data | H80: 0 | I80: selskabet har ikke indrapporteret i flere omgange
A81: Pumpestationer i underjordiske bygværker (<50 m2), SRO | B81: stk. | C81: 10 | D81: 0 | E81: 2 | F81: 2 | G81: Ny data | H81: 0 | I81: selskabet har ikke indrapporteret i flere omgange
A82: Små pumpestationer (<100 l/s) inkl. SRO-anlæg - By
A83: Tryksatte minipumpestationer (husstandssystemer) | B83: stk. | C83: 30 | D83: 0 | E83: 0 | F83: 7 | G83: 0 | H83: Ny data | I83: selskabet har ikke indrapporteret i flere omgange
A84: Pumpestationer i brønde (< 6,25 m2), Konstruktioner | B84: stk. | C84: 50 | D84: 0 | E84: 67 | F84: 74 | G84: Ny data | H84: 0.1044776119 | I84: selskabet har ikke indrapporteret i flere omgange
A85: Pumpestationer i brønde (< 6,25 m2), Mek/EL | B85: stk. | C85: 20 | D85: 0 | E85: 67 | F85: 74 | G85: Ny data | H85: 0.1044776119 | I85: selskabet har ikke indrapporteret i flere omgange
A86: Pumpestationer i brønde (< 6,25 m2), SRO | B86: stk. | C86: 10 | D86: 0 | E86: 67 | F86: 74 | G86: Ny data | H86: 0.1044776119 | I86: selskabet har ikke indrapporteret i flere omgange
A87: Pumpestationer m. overbygning (< 20 m2), Konstruktioner | B87: stk. | C87: 50 | D87: 0 | E87: 9 | F87: 9 | G87: Ny data | H87: 0 | I87: selskabet har ikke indrapporteret i flere omgange
A88: Pumpestationer m. overbygning (< 20 m2), Mek/EL | B88: stk. | C88: 20 | D88: 0 | E88: 9 | F88: 9 | G88: Ny data | H88: 0 | I88: selskabet har ikke indrapporteret i flere omgange
A89: Pumpestationer m. overbygning (< 20 m2), SRO | B89: stk. | C89: 10 | D89: 0 | E89: 9 | F89: 9 | G89: Ny data | H89: 0 | I89: selskabet har ikke indrapporteret i flere omgange
A90: Pumpestationer i underjordiske bygværker (<50 m2), Konstruktioner | B90: stk. | C90: 50 | D90: 0 | E90: 10 | F90: 10 | G90: Ny data | H90: 0 | I90: selskabet har ikke indrapporteret i flere omgange
A91: Pumpestationer i underjordiske bygværker (<50 m2), Mek/El | B91: stk. | C91: 20 | D91: 0 | E91: 10 | F91: 10 | G91: Ny data | H91: 0 | I91: selskabet har ikke indrapporteret i flere omgange
A92: Pumpestationer i underjordiske bygværker (<50 m2), SRO | B92: stk. | C92: 10 | D92: 0 | E92: 10 | F92: 10 | G92: Ny data | H92: 0 | I92: selskabet har ikke indrapporteret i flere omgange
A93: Små pumpestationer (<100 l/s) inkl. SRO-anlæg - City
A94: Tryksatte minipumpestationer (husstandssystemer) | B94: stk. | C94: 30 | D94: 0 | G94: 0
A95: Pumpestationer i brønde (< 6,25 m2), Konstruktioner | B95: stk. | C95: 50 | D95: 0 | G95: 0
A96: Pumpestationer i brønde (< 6,25 m2), Mek/EL | B96: stk. | C96: 20 | D96: 0 | G96: 0
A97: Pumpestationer i brønde (< 6,25 m2), SRO | B97: stk. | C97: 10 | D97: 0 | G97: 0
A98: Pumpestationer m. overbygning (< 20 m2), Konstruktioner | B98: stk. | C98: 50 | D98: 0 | G98: 0
A99: Pumpestationer m. overbygning (< 20 m2), Mek/EL | B99: stk. | C99: 20 | D99: 0 | G99: 0
A100: Pumpestationer m. overbygning (< 20 m2), SRO | B100: stk. | C100: 10 | D100: 0 | G100: 0
A101: Pumpestationer i underjordiske bygværker (<50 m2), Konstruktioner | B101: stk. | C101: 50 | D101: 0 | G101: 0
A102: Pumpestationer i underjordiske bygværker (<50 m2), Mek/El | B102: stk. | C102: 20 | D102: 0 | G102: 0
A103: Pumpestationer i underjordiske bygværker (<50 m2), SRO | B103: stk. | C103: 10 | D103: 0 | G103: 0
A104: Små pumpestationer (<100 l/s) inkl. SRO-anlæg - Indre city
A105: Tryksatte minipumpestationer (husstandssystemer) | B105: stk. | C105: 30 | D105: 0 | G105: 0
A106: Pumpestationer i brønde (< 6,25 m2), Konstruktioner | B106: stk. | C106: 50 | D106: 0 | G106: 0
A107: Pumpestationer i brønde (< 6,25 m2), Mek/EL | B107: stk. | C107: 20 | D107: 0 | G107: 0
A108: Pumpestationer i brønde (< 6,25 m2), SRO | B108: stk. | C108: 10 | D108: 0 | G108: 0
A109: Pumpestationer m. overbygning (< 20 m2), Konstruktioner | B109: stk. | C109: 50 | D109: 0 | G109: 0
A110: Pumpestationer m. overbygning (< 20 m2), Mek/EL | B110: stk. | C110: 20 | D110: 0 | G110: 0
A111: Pumpestationer m. overbygning (< 20 m2), SRO | B111: stk. | C111: 10 | D111: 0 | G111: 0
A112: Pumpestationer i underjordiske bygværker (<50 m2), Konstruktioner | B112: stk. | C112: 50 | D112: 0 | G112: 0
A113: Pumpestationer i underjordiske bygværker (<50 m2), Mek/El | B113: stk. | C113: 20 | D113: 0 | G113: 0
A114: Pumpestationer i underjordiske bygværker (<50 m2), SRO | B114: stk. | C114: 10 | D114: 0 | G114: 0
A115: Store pumpestationer: inkl. SRO-anlæg - Land
A116: Kælder | B116: m2 | C116: 75 | D116: 0 | E116: 35 | F116: 35 | G116: Ny data | H116: 0 | I116: selskabet har ikke indrapporteret i flere omgange
A117: Pumpeinstallation Miljøklasse A (100-300 l/s) - Mek/EL | B117: stk. | C117: 20 | D117: 0 | E117: 2 | F117: 2 | G117: Ny data | H117: 0 | I117: selskabet har ikke indrapporteret i flere omgange
A118: Pumpeinstallation Miljøklasse A (100-300 l/s) - SRO | B118: stk. | C118: 10 | D118: 0 | E118: 2 | F118: 2 | G118: Ny data | H118: 0 | I118: selskabet har ikke indrapporteret i flere omgange
A119: Pumpeinstallation Miljøklasse A (300-600 l/s) - Mek/EL | B119: stk. | C119: 20 | D119: 0 | E119: 0 | G119: 0 | H119: 0
A120: Pumpeinstallation Miljøklasse A (300-600 l/s) - SRO | B120: stk. | C120: 10 | D120: 0 | E120: 0 | G120: 0 | H120: 0
A121: Pumpeinstallation Miljøklasse A (600-1.000 l/s) - Mek/EL | B121: stk. | C121: 20 | D121: 0 | E121: 0 | G121: 0 | H121: 0
A122: Pumpeinstallation Miljøklasse A (600-1.000 l/s) - SRO | B122: stk. | C122: 10 | D122: 0 | E122: 0 | G122: 0 | H122: 0
A123: Pumpeinstallation Miljøklasse A (1.000-1.500 l/s) - Mek/EL | B123: stk. | C123: 20 | D123: 0 | E123: 0 | G123: 0 | H123: 0
A124: Pumpeinstallation Miljøklasse A (1.000-1.500 l/s) - SRO | B124: stk. | C124: 10 | D124: 0 | E124: 0 | G124: 0 | H124: 0
A125: Pumpeinstallation Miljøklasse B (100-300 l/s) - Mek/EL | B125: stk. | C125: 20 | D125: 0 | E125: 0 | G125: 0 | H125: 0
A126: Pumpeinstallation Miljøklasse B (100-300 l/s) - SRO | B126: stk. | C126: 10 | D126: 0 | E126: 0 | G126: 0 | H126: 0
A127: Pumpeinstallation Miljøklasse B (300-600 l/s) - Mek/EL | B127: stk. | C127: 20 | D127: 0 | E127: 0 | G127: 0 | H127: 0
A128: Pumpeinstallation Miljøklasse B (300-600 l/s) - SRO | B128: stk. | C128: 10 | D128: 0 | E128: 0 | G128: 0 | H128: 0
A129: Pumpeinstallation Miljøklasse B (600-1.000 l/s) - Mek/EL | B129: stk. | C129: 20 | D129: 0 | E129: 0 | G129: 0 | H129: 0
A130: Pumpeinstallation Miljøklasse B (600-1.000 l/s) - SRO | B130: stk. | C130: 10 | D130: 0 | E130: 0 | G130: 0 | H130: 0
A131: Pumpeinstallation Miljøklasse B (1.000-1.500 l/s) - Mek/EL | B131: stk. | C131: 20 | D131: 0 | E131: 0 | G131: =IF(D131="",IF(E131>0,"Ny data",IF(E131="","",0)),IF(D131=0,IF(E131=0,0,"Ny data"),(E131-D131)/D131)) -> 0 | H131: =IF(E131="",IF(F131>0,"Ny data",IF(F131="","",0)),IF(E131=0,IF(F131=0,0,"Ny data"),(F131-E131)/E131)) -> 0
A132: Pumpeinstallation Miljøklasse B (1.000-1.500 l/s) - SRO | B132: stk. | C132: 10 | D132: 0 | E132: 0 | G132: 0 | H132: 0
A133: Overbygning | B133: m2 | C133: 75 | D133: 0 | E133: 0 | G133: 0 | H133: 0
A134: Store pumpestationer: inkl. SRO-anlæg - By
A135: Kælder | B135: m2 | C135: 75 | D135: 0 | E135: 50 | F135: 100 | G135: Ny data | H135: 1 | I135: selskabet har ikke indrapporteret i flere omgange
A136: Pumpeinstallation Miljøklasse A (100-300 l/s) - Mek/EL | B136: stk. | C136: 20 | D136: 0 | E136: 4 | F136: 4 | G136: Ny data | H136: 0 | I136: selskabet har ikke indrapporteret i flere omgange
A137: Pumpeinstallation Miljøklasse A (100-300 l/s) - SRO | B137: stk. | C137: 10 | D137: 0 | E137: 4 | F137: 4 | G137: Ny data | H137: 0 | I137: selskabet har ikke indrapporteret i flere omgange
A138: Pumpeinstallation Miljøklasse A (300-600 l/s) - Mek/EL | B138: stk. | C138: 20 | D138: 0 | E138: 0 | G138: 0 | H138: 0
A139: Pumpeinstallation Miljøklasse A (300-600 l/s) - SRO | B139: stk. | C139: 10 | D139: 0 | E139: 0 | G139: 0 | H139: 0
A140: Pumpeinstallation Miljøklasse A (600-1.000 l/s) - Mek/EL | B140: stk. | C140: 20 | D140: 0 | E140: 0 | G140: 0 | H140: 0
A141: Pumpeinstallation Miljøklasse A (600-1.000 l/s) - SRO | B141: stk. | C141: 10 | D141: 0 | E141: 0 | G141: 0 | H141: 0
A142: Pumpeinstallation Miljøklasse A (1.000-1.500 l/s) - Mek/EL | B142: stk. | C142: 20 | D142: 0 | E142: 0 | G142: 0 | H142: 0
A143: Pumpeinstallation Miljøklasse A (1.000-1.500 l/s) - SRO | B143: stk. | C143: 10 | D143: 0 | E143: 0 | G143: 0 | H143: 0
A144: Pumpeinstallation Miljøklasse B (100-300 l/s) - Mek/EL | B144: stk. | C144: 20 | D144: 0 | E144: 0 | G144: 0 | H144: 0
A145: Pumpeinstallation Miljøklasse B (100-300 l/s) - SRO | B145: stk. | C145: 10 | D145: 0 | E145: 0 | G145: 0 | H145: 0
A146: Pumpeinstallation Miljøklasse B (300-600 l/s) - Mek/EL | B146: stk. | C146: 20 | D146: 0 | E146: 0 | G146: 0 | H146: 0
A147: Pumpeinstallation Miljøklasse B (300-600 l/s) - SRO | B147: stk. | C147: 10 | D147: 0 | E147: 0 | G147: 0 | H147: 0
A148: Pumpeinstallation Miljøklasse B (600-1.000 l/s) - Mek/EL | B148: stk. | C148: 20 | D148: 0 | E148: 0 | G148: 0 | H148: 0
A149: Pumpeinstallation Miljøklasse B (600-1.000 l/s) - SRO | B149: stk. | C149: 10 | D149: 0 | E149: 0 | G149: 0 | H149: 0
A150: Pumpeinstallation Miljøklasse B (1.000-1.500 l/s) - Mek/EL | B150: stk. | C150: 20 | D150: 0 | E150: 0 | G150: 0 | H150: 0
A151: Pumpeinstallation Miljøklasse B (1.000-1.500 l/s) - SRO | B151: stk. | C151: 10 | D151: 0 | E151: 0 | G151: 0 | H151: 0
A152: Overbygning | B152: m2 | C152: 75 | D152: 0 | E152: 50 | F152: 100 | G152: Ny data | H152: 1 | I152: selskabet har ikke indrapporteret i flere omgange
A153: Store pumpestationer: inkl. SRO-anlæg - City
A154: Kælder | B154: m2 | C154: 75 | D154: 0 | G154: 0
A155: Pumpeinstallation Miljøklasse A (100-300 l/s) - Mek/EL | B155: stk. | C155: 20 | D155: 0 | G155: 0
A156: Pumpeinstallation Miljøklasse A (100-300 l/s) - SRO | B156: stk. | C156: 10 | D156: 0 | G156: 0
A157: Pumpeinstallation Miljøklasse A (300-600 l/s) - Mek/EL | B157: stk. | C157: 20 | D157: 0 | G157: 0
A158: Pumpeinstallation Miljøklasse A (300-600 l/s) - SRO | B158: stk. | C158: 10 | D158: 0 | G158: 0
A159: Pumpeinstallation Miljøklasse A (600-1.000 l/s) - Mek/EL | B159: stk. | C159: 20 | D159: 0 | G159: 0
A160: Pumpeinstallation Miljøklasse A (600-1.000 l/s) - SRO | B160: stk. | C160: 10 | D160: 0 | G160: 0
A161: Pumpeinstallation Miljøklasse A (1.000-1.500 l/s) - Mek/EL | B161: stk. | C161: 20 | D161: 0 | G161: 0
A162: Pumpeinstallation Miljøklasse A (1.000-1.500 l/s) - SRO | B162: stk. | C162: 10 | D162: 0 | G162: 0
A163: Pumpeinstallation Miljøklasse B (100-300 l/s) - Mek/EL | B163: stk. | C163: 20 | D163: 0 | G163: 0
A164: Pumpeinstallation Miljøklasse B (100-300 l/s) - SRO | B164: stk. | C164: 10 | D164: 0 | G164: 0
A165: Pumpeinstallation Miljøklasse B (300-600 l/s) - Mek/EL | B165: stk. | C165: 20 | D165: 0 | G165: 0
A166: Pumpeinstallation Miljøklasse B (300-600 l/s) - SRO | B166: stk. | C166: 10 | D166: 0 | G166: 0
A167: Pumpeinstallation Miljøklasse B (600-1.000 l/s) - Mek/EL | B167: stk. | C167: 20 | D167: 0 | G167: 0
A168: Pumpeinstallation Miljøklasse B (600-1.000 l/s) - SRO | B168: stk. | C168: 10 | D168: 0 | G168: 0
A169: Pumpeinstallation Miljøklasse B (1.000-1.500 l/s) - Mek/EL | B169: stk. | C169: 20 | D169: 0 | G169: 0
A170: Pumpeinstallation Miljøklasse B (1.000-1.500 l/s) - SRO | B170: stk. | C170: 10 | D170: 0 | G170: 0
A171: Overbygning | B171: m2 | C171: 75 | D171: 0 | G171: 0
A172: Store pumpestationer: inkl. SRO-anlæg - Indre city
A173: Kælder | B173: m2 | C173: 75 | D173: 0 | G173: 0
A174: Pumpeinstallation Miljøklasse A (100-300 l/s) - Mek/EL | B174: stk. | C174: 20 | D174: 0 | G174: 0
A175: Pumpeinstallation Miljøklasse A (100-300 l/s) - SRO | B175: stk. | C175: 10 | D175: 0 | G175: 0
A176: Pumpeinstallation Miljøklasse A (300-600 l/s) - Mek/EL | B176: stk. | C176: 20 | D176: 0 | G176: 0
A177: Pumpeinstallation Miljøklasse A (300-600 l/s) - SRO | B177: stk. | C177: 10 | D177: 0 | G177: 0
A178: Pumpeinstallation Miljøklasse A (600-1.000 l/s) - Mek/EL | B178: stk. | C178: 20 | D178: 0 | G178: 0
A179: Pumpeinstallation Miljøklasse A (600-1.000 l/s) - SRO | B179: stk. | C179: 10 | D179: 0 | G179: 0
A180: Pumpeinstallation Miljøklasse A (1.000-1.500 l/s) - Mek/EL | B180: stk. | C180: 20 | D180: 0 | G180: 0
A181: Pumpeinstallation Miljøklasse A (1.000-1.500 l/s) - SRO | B181: stk. | C181: 10 | D181: 0 | G181: 0
A182: Pumpeinstallation Miljøklasse B (100-300 l/s) - Mek/EL | B182: stk. | C182: 20 | D182: 0 | G182: 0
A183: Pumpeinstallation Miljøklasse B (100-300 l/s) - SRO | B183: stk. | C183: 10 | D183: 0 | G183: 0
A184: Pumpeinstallation Miljøklasse B (300-600 l/s) - Mek/EL | B184: stk. | C184: 20 | D184: 0 | G184: 0
A185: Pumpeinstallation Miljøklasse B (300-600 l/s) - SRO | B185: stk. | C185: 10 | D185: 0 | G185: 0
A186: Pumpeinstallation Miljøklasse B (600-1.000 l/s) - Mek/EL | B186: stk. | C186: 20 | D186: 0 | G186: 0
A187: Pumpeinstallation Miljøklasse B (600-1.000 l/s) - SRO | B187: stk. | C187: 10 | D187: 0 | G187: 0
A188: Pumpeinstallation Miljøklasse B (1.000-1.500 l/s) - Mek/EL | B188: stk. | C188: 20 | D188: 0 | G188: 0
A189: Pumpeinstallation Miljøklasse B (1.000-1.500 l/s) - SRO | B189: stk. | C189: 10 | D189: 0 | G189: 0
A190: Overbygning | B190: m2 | C190: 75 | D190: 0 | G190: 0
A191: Overløbsbygværker - Land
A192: Kælder (< 7 m2) | B192: stk. | C192: 75 | D192: 0 | E192: 23 | F192: 23 | G192: Ny data | H192: 0 | I192: selskabet har ikke indrapporteret i flere omgange
A193: Kælder (7 - 20 m2) | B193: m2 | C193: 75 | D193: 0 | E193: 0 | F193: 0 | G193: 0 | H193: 0
A194: Kælder (20 - 30 m2) | B194: m2 | C194: 75 | D194: 0 | E194: 0 | F194: 0 | G194: 0 | H194: 0
A195: Installationer (mindre end 7 m2) | B195: stk. | C195: 20 | D195: 0 | E195: 23 | F195: 23 | G195: =IF(D195="",IF(E195>0,"Ny data",IF(E195="","",0)),IF(D195=0,IF(E195=0,0,"Ny data"),(E195-D195)/D195)) -> Ny data | H195: =IF(E195="",IF(F195>0,"Ny data",IF(F195="","",0)),IF(E195=0,IF(F195=0,0,"Ny data"),(F195-E195)/E195)) -> 0 | I195: selskabet har ikke indrapporteret i flere omgange
A196: Installationer, Miljøklasse A. (7-20 m2) - Mek/EL | B196: stk. | C196: 20 | D196: 0 | E196: 0 | F196: 0 | G196: 0 | H196: =IF(E196="",IF(#REF!>0,"Ny data",IF(#REF!="","",0)),IF(E196=0,IF(#REF!=0,0,"Ny data"),(#REF!-E196)/E196)) -> 
A197: Installationer, Miljøklasse A. (7-20 m2) - SRO | B197: stk. | C197: 10 | D197: 0 | E197: 0 | F197: 0 | G197: 0 | H197: =IF(E197="",IF(F196>0,"Ny data",IF(F196="","",0)),IF(E197=0,IF(F196=0,0,"Ny data"),(F196-E197)/E197)) -> 0
A198: Installationer, Miljøklasse A. (20-30 m2) - Mek/EL | B198: stk. | C198: 20 | D198: 0 | E198: 0 | F198: 0 | G198: 0 | H198: 0
A199: Installationer, Miljøklasse A. (20-30 m2) - SRO | B199: stk. | C199: 10 | D199: 0 | E199: 0 | F199: 0 | G199: 0 | H199: 0
A200: Installationer, Miljøklasse B. (7-20 m2) - Mek/EL | B200: stk. | C200: 20 | D200: 0 | E200: 0 | F200: 0 | G200: 0 | H200: 0
A201: Installationer, Miljøklasse B. (7-20 m2) - SRO | B201: stk. | C201: 10 | D201: 0 | E201: 0 | F201: 0 | G201: 0 | H201: 0
... 117 more rows

Sheet Fællesfunktionsanlæg
A1: Fællesfunktionsanlæg | B1: Enhed | C1: Standard-levetid | D1: Samlet mængde per 31/12-2022 | E1: Samlet mængde per 31/12-2023 | F1: Samlet mængde per 31/12-2024 | G1: Afvigelse 2022-2023 | H1: Afvigelse 2023-2024 | I1: Bemærkninger
A3: Andre | G3: =IF(D3="",IF(E3>0,"Ny data",IF(E3="","",0)),IF(D3=0,IF(E3=0,0,"Ny data"),(E3-D3)/D3)) ->  | H3: =IF(E3="",IF(F3>0,"Ny data",IF(F3="","",0)),IF(E3=0,IF(F3=0,0,"Ny data"),(F3-E3)/E3)) -> 
A4: Administrationbygninger | B4: m2 | C4: 75 | D4: 0 | E4: 120 | F4: 120 | G4: Ny data | H4: 0 | I4: ingen rapportering sidste gang
A5: Arbejdsplads og kontor | B5: stk. | C5: 5 | D5: 0 | E5: 20 | F5: 20 | G5: Ny data | H5: 0 | I5: ingen rapportering sidste gang
A6: Køretøjer, personbil | B6: stk. | C6: 5 | D6: 0 | E6: 2 | F6: 2 | G6: Ny data | H6: 0 | I6: ingen rapportering sidste gang
A7: Køretøjer, små lastvogne (< 3.500 kg.) | B7: stk. | C7: 5 | D7: 0 | E7: 12 | F7: 12 | G7: Ny data | H7: 0 | I7: ingen rapportering sidste gang
A8: Køretøjer, store lastvogne (> 3.500 kg.) | B8: stk. | C8: 5 | D8: 0 | E8: 0 | F8: 0 | G8: 0 | H8: 0 | I8: ingen rapportering sidste gang
A9: Køretøjer, entreprenørmaskiner | B9: stk. | C9: 5 | D9: 0 | E9: 0 | F9: 0 | G9: 0 | H9: 0 | I9: ingen rapportering sidste gang
A10: Slamsugere | B10: stk. | C10: 5 | D10: 0 | E10: 0 | F10: 0 | G10: 0 | H10: 0 | I10: ingen rapportering sidste gang
A11: Værksteder, garager | B11: m2 | C11: 75 | D11: 0 | E11: 700 | F11: 700 | G11: Ny data | H11: 0 | I11: ingen rapportering sidste gang
A12: Solcelleanlæg eksl. Inverter | B12: kWp | C12: 25 | D12: 0 | E12: 0 | F12: 0 | G12: 0 | H12: 0 | I12: ingen rapportering sidste gang
A13: Inverter til solcelleanlæg | B13: kWp | C13: 10 | D13: 0 | E13: 0 | F13: 0 | G13: 0 | H13: 0 | I13: ingen rapportering sidste gang
